[Event "Titled Tuesday Blitz January 10 Late 2023"]
[White "Andreev, Eduard"]
[Black "Kovacevic, Radmila"]
[WhiteFideId "14103400"]
[BlackFideId "933171"]
[WhiteElo "2413"]
[BlackElo "2106"]
[Result "1-0"]
[Round "01"]
[TimeControl "180+2"]
[Date "2023.01.10"]
[WhiteClock "0:00:18"]
[BlackClock "0:00:07"]

1. e4 {[%clk 0:00:00]}  e5 {[%clk 0:00:00]} 2. Nf3 {[%clk 0:03:00]}  d5 {[%clk 0:02:59]} 3. exd5 {[%clk 0:03:00]}  e4 {[%clk 0:02:57]} 4. Qe2 {[%clk 0:02:59]}  Nf6 {[%clk 0:02:57]} 5. d3 {[%clk 0:02:58]}  Qxd5 {[%clk 0:02:57]} 6. Nbd2 {[%clk 0:02:58]}  Be7 {[%clk 0:02:58]} 7. Nxe4 {[%clk 0:02:57]}  O-O {[%clk 0:02:57]} 8. g3 {[%clk 0:02:56]}  Bg4 {[%clk 0:02:57]} 9. Bg2 {[%clk 0:02:51]}  Nc6 {[%clk 0:02:53]} 10. O-O {[%clk 0:02:51]}  Nd4 {[%clk 0:02:39]} 11. Qd1 {[%clk 0:01:58]}  Rad8 {[%clk 0:02:32]} 12. h3 {[%clk 0:01:30]}  Bh5 {[%clk 0:02:29]} 13. Nxd4 {[%clk 0:01:16]}  Qxd4 {[%clk 0:02:11]} 14. Nxf6+ {[%clk 0:01:15]}  Bxf6 {[%clk 0:01:58]} 15. Qxh5 {[%clk 0:01:07]}  Rfe8 {[%clk 0:01:57]} 16. Bxb7 {[%clk 0:01:05]}  Qb6 {[%clk 0:01:47]} 17. Bg2 {[%clk 0:00:55]}  Rd6 {[%clk 0:01:30]} 18. Rb1 {[%clk 0:00:53]}  Rde6 {[%clk 0:01:14]} 19. Be3 {[%clk 0:00:42]}  Rxe3 {[%clk 0:01:13]} 20. fxe3 {[%clk 0:00:36]}  Qxe3+ {[%clk 0:01:12]} 21. Kh2 {[%clk 0:00:37]}  Qd2 {[%clk 0:00:58]} 22. Qd1 {[%clk 0:00:38]}  Qg5 {[%clk 0:00:53]} 23. Re1 {[%clk 0:00:35]}  Rd8 {[%clk 0:00:50]} 24. Qf3 {[%clk 0:00:35]}  h6 {[%clk 0:00:49]} 25. Re4 {[%clk 0:00:34]}  Qa5 {[%clk 0:00:47]} 26. Rg4 {[%clk 0:00:34]}  Kh8 {[%clk 0:00:39]} 27. Rf4 {[%clk 0:00:32]}  Rd6 {[%clk 0:00:36]} 28. a3 {[%clk 0:00:30]}  Qd2 {[%clk 0:00:23]} 29. Qf2 {[%clk 0:00:22]}  Qa5 {[%clk 0:00:20]} 30. Re1 {[%clk 0:00:19]}  Qb6 {[%clk 0:00:19]} 31. Re8+ {[%clk 0:00:19]}  Kh7 {[%clk 0:00:09]} 32. Be4+ {[%clk 0:00:18]}  g6 {[%clk 0:00:09]} 33. Qxb6 {[%clk 0:00:18]}  Rxb6 {[%clk 0:00:10]} 34. b3 {[%clk 0:00:17]}  Kg7 {[%clk 0:00:09]} 35. Rf3 {[%clk 0:00:18]}  Rd6 {[%clk 0:00:09]} 36. c4 {[%clk 0:00:17]}  c5 {[%clk 0:00:08]} 37. Rc8 {[%clk 0:00:16]}  Bd4 {[%clk 0:00:07]} 38. Bd5 {[%clk 0:00:16]}  Rf6 {[%clk 0:00:07]} 39. Rxf6 {[%clk 0:00:17]}  Kxf6 {[%clk 0:00:07]} 40. Kg2 {[%clk 0:00:17]}  g5 {[%clk 0:00:07]} 41. Kf3 {[%clk 0:00:18]}  Ke5 {[%clk 0:00:07]} 42. g4 {[%clk 0:00:18]}  Kf6 {[%clk 0:00:07]} 43. Rc7 {[%clk 0:00:18]} 1-0


[Site "https://www.chess.com"]

[Event "Titled Tuesday Blitz January 10 Late 2023"]
[White "Karas, Marek"]
[Black "Lopez Perdomo, Juan David"]
[WhiteFideId "14928558"]
[BlackFideId "4405137"]
[WhiteElo "2227"]
[BlackElo "2029"]
[Result "0-1"]
[Round "01"]
[TimeControl "180+2"]
[Date "2023.01.10"]
[WhiteClock "0:02:02"]
[BlackClock "0:01:02"]

1. h4 {[%clk 0:00:00]}  e6 {[%clk 0:00:00]} 2. d4 {[%clk 0:02:58]}  d5 {[%clk 0:02:58]} 3. Bg5 {[%clk 0:02:56]}  Nf6 {[%clk 0:02:59]} 4. Nf3 {[%clk 0:02:55]}  Be7 {[%clk 0:02:56]} 5. e3 {[%clk 0:02:53]}  h6 {[%clk 0:02:56]} 6. Bf4 {[%clk 0:02:54]}  c5 {[%clk 0:02:56]} 7. c3 {[%clk 0:02:53]}  O-O {[%clk 0:02:55]} 8. Ne5 {[%clk 0:02:53]}  Nc6 {[%clk 0:02:50]} 9. Nd2 {[%clk 0:02:54]}  Nd7 {[%clk 0:02:49]} 10. Nxd7 {[%clk 0:02:52]}  Bxd7 {[%clk 0:02:48]} 11. Bd3 {[%clk 0:02:48]}  cxd4 {[%clk 0:02:47]} 12. exd4 {[%clk 0:02:48]}  Qb6 {[%clk 0:02:28]} 13. Rb1 {[%clk 0:02:39]}  Nxd4 {[%clk 0:02:24]} 14. Be3 {[%clk 0:02:38]}  e5 {[%clk 0:02:21]} 15. cxd4 {[%clk 0:02:35]}  exd4 {[%clk 0:02:07]} 16. Bf4 {[%clk 0:02:35]}  Bd6 {[%clk 0:02:08]} 17. Qf3 {[%clk 0:02:35]}  Rfe8+ {[%clk 0:02:04]} 18. Kf1 {[%clk 0:02:33]}  Bxf4 {[%clk 0:02:04]} 19. Qxf4 {[%clk 0:02:34]}  Bb5 {[%clk 0:01:42]} 20. Qf3 {[%clk 0:02:34]}  Re3 {[%clk 0:01:43]} 21. fxe3 {[%clk 0:02:31]}  Bxd3+ {[%clk 0:01:35]} 22. Kf2 {[%clk 0:02:26]}  Bxb1 {[%clk 0:01:35]} 23. Rxb1 {[%clk 0:02:26]}  dxe3+ {[%clk 0:01:21]} 24. Qxe3 {[%clk 0:02:27]}  d4 {[%clk 0:01:19]} 25. Qd3 {[%clk 0:02:27]}  Re8 {[%clk 0:01:19]} 26. Nf3 {[%clk 0:02:25]}  Re3 {[%clk 0:01:16]} 27. Qxd4 {[%clk 0:02:20]}  Rxf3+ {[%clk 0:01:12]} 28. gxf3 {[%clk 0:02:20]}  Qxd4+ {[%clk 0:01:12]} 29. Kg3 {[%clk 0:02:10]}  Qd2 {[%clk 0:01:12]} 30. a4 {[%clk 0:02:09]}  Qc2 {[%clk 0:01:04]} 31. Re1 {[%clk 0:02:04]}  Qxa4 {[%clk 0:01:03]} 32. Re8+ {[%clk 0:02:02]}  Qxe8 {[%clk 0:01:02]} 0-1


[Site "https://www.chess.com"]

[Event "Titled Tuesday Blitz January 10 Late 2023"]
[White "Michalski, Olaf"]
[Black "Denishev, Marat"]
[WhiteFideId "1106740"]
[BlackFideId "24131563"]
[WhiteElo "2273"]
[BlackElo "2255"]
[Result "0-1"]
[Round "01"]
[TimeControl "180+2"]
[Date "2023.01.10"]
[WhiteClock "0:00:05"]
[BlackClock "0:01:11"]

1. d4 {[%clk 0:00:00]}  d5 {[%clk 0:00:00]} 2. c4 {[%clk 0:02:53]}  e6 {[%clk 0:02:59]} 3. Nc3 {[%clk 0:02:53]}  Nf6 {[%clk 0:02:58]} 4. Bg5 {[%clk 0:02:52]}  Be7 {[%clk 0:02:58]} 5. e3 {[%clk 0:02:52]}  O-O {[%clk 0:02:58]} 6. Rc1 {[%clk 0:02:52]}  Nbd7 {[%clk 0:02:57]} 7. Nf3 {[%clk 0:02:52]}  c6 {[%clk 0:02:57]} 8. Bd3 {[%clk 0:02:52]}  b6 {[%clk 0:02:56]} 9. O-O {[%clk 0:02:52]}  Bb7 {[%clk 0:02:54]} 10. cxd5 {[%clk 0:02:46]}  cxd5 {[%clk 0:02:53]} 11. Qe2 {[%clk 0:02:23]}  h6 {[%clk 0:02:53]} 12. Bf4 {[%clk 0:02:06]}  Nh5 {[%clk 0:02:44]} 13. Be5 {[%clk 0:01:54]}  Nxe5 {[%clk 0:02:40]} 14. dxe5 {[%clk 0:01:44]}  g6 {[%clk 0:02:27]} 15. Nd4 {[%clk 0:01:43]}  Ng7 {[%clk 0:02:26]} 16. Ncb5 {[%clk 0:01:28]}  a6 {[%clk 0:02:25]} 17. Nc7 {[%clk 0:01:18]}  Ra7 {[%clk 0:02:18]} 18. Nxa6 {[%clk 0:01:14]}  Bxa6 {[%clk 0:02:09]} 19. Bxa6 {[%clk 0:00:57]}  Qa8 {[%clk 0:01:42]} 20. Bd3 {[%clk 0:00:55]}  Rxa2 {[%clk 0:01:43]} 21. Rc2 {[%clk 0:00:40]}  Bc5 {[%clk 0:01:40]} 22. b4 {[%clk 0:00:41]}  Rxc2 {[%clk 0:01:35]} 23. Nxc2 {[%clk 0:00:19]}  Be7 {[%clk 0:01:33]} 24. Ra1 {[%clk 0:00:19]}  Qb7 {[%clk 0:01:32]} 25. Ba6 {[%clk 0:00:19]}  Qc7 {[%clk 0:01:28]} 26. g4 {[%clk 0:00:16]}  Qxe5 {[%clk 0:01:26]} 27. Nd4 {[%clk 0:00:06]}  Bxb4 {[%clk 0:01:24]} 28. Rb1 {[%clk 0:00:05]}  Bc5 {[%clk 0:01:11]} 0-1


[Site "https://www.chess.com"]

[Event "Titled Tuesday Blitz January 10 Late 2023"]
[White "Manukyan, Sargis A."]
[Black "Tsukerman, Julia"]
[WhiteFideId "13303970"]
[BlackFideId "2621649"]
[WhiteElo "2158"]
[BlackElo "1741"]
[Result "1-0"]
[Round "01"]
[TimeControl "180+2"]
[Date "2023.01.10"]
[WhiteClock "0:00:27"]
[BlackClock "0:00:02"]

1. d4 {[%clk 0:00:00]}  d5 {[%clk 0:00:00]} 2. c4 {[%clk 0:03:00]}  e6 {[%clk 0:02:40]} 3. Nc3 {[%clk 0:03:00]}  Nf6 {[%clk 0:02:40]} 4. Nf3 {[%clk 0:03:00]}  Be7 {[%clk 0:02:39]} 5. Bg5 {[%clk 0:02:54]}  Nbd7 {[%clk 0:02:39]} 6. e3 {[%clk 0:02:50]}  O-O {[%clk 0:02:33]} 7. cxd5 {[%clk 0:02:49]}  exd5 {[%clk 0:02:32]} 8. Bd3 {[%clk 0:02:49]}  c6 {[%clk 0:02:31]} 9. O-O {[%clk 0:02:43]}  Re8 {[%clk 0:02:28]} 10. Qc2 {[%clk 0:02:42]}  Nf8 {[%clk 0:02:24]} 11. Bxf6 {[%clk 0:02:41]}  Bxf6 {[%clk 0:02:17]} 12. b4 {[%clk 0:02:40]}  a6 {[%clk 0:02:14]} 13. a4 {[%clk 0:02:41]}  Bg4 {[%clk 0:01:54]} 14. Nd2 {[%clk 0:02:39]}  b5 {[%clk 0:01:49]} 15. axb5 {[%clk 0:02:36]}  axb5 {[%clk 0:01:44]} 16. Ne2 {[%clk 0:02:17]}  Qd6 {[%clk 0:01:40]} 17. Qc3 {[%clk 0:02:18]}  Be7 {[%clk 0:01:31]} 18. Qc5 {[%clk 0:02:07]}  Qxc5 {[%clk 0:01:14]} 19. dxc5 {[%clk 0:01:51]}  Bf6 {[%clk 0:01:10]} 20. Nd4 {[%clk 0:01:52]}  Bxd4 {[%clk 0:01:04]} 21. exd4 {[%clk 0:01:52]}  Nd7 {[%clk 0:00:48]} 22. f3 {[%clk 0:01:53]}  Be6 {[%clk 0:00:47]} 23. Kf2 {[%clk 0:01:48]}  h6 {[%clk 0:00:37]} 24. Rfe1 {[%clk 0:01:39]}  Nf6 {[%clk 0:00:32]} 25. Nb3 {[%clk 0:01:25]}  Kf8 {[%clk 0:00:30]} 26. Na5 {[%clk 0:01:16]}  Bd7 {[%clk 0:00:26]} 27. h3 {[%clk 0:01:15]}  Nh5 {[%clk 0:00:20]} 28. Rxe8+ {[%clk 0:01:12]}  Bxe8 {[%clk 0:00:18]} 29. Re1 {[%clk 0:01:04]}  Nf4 {[%clk 0:00:17]} 30. Bf1 {[%clk 0:01:03]}  Bd7 {[%clk 0:00:16]} 31. g3 {[%clk 0:01:02]}  Ne6 {[%clk 0:00:15]} 32. Ke3 {[%clk 0:00:56]}  Re8 {[%clk 0:00:15]} 33. Kd3 {[%clk 0:00:54]}  Ng5 {[%clk 0:00:14]} 34. Rxe8+ {[%clk 0:00:49]}  Kxe8 {[%clk 0:00:13]} 35. Ke3 {[%clk 0:00:47]}  Ne6 {[%clk 0:00:12]} 36. h4 {[%clk 0:00:43]}  Ke7 {[%clk 0:00:09]} 37. Bd3 {[%clk 0:00:37]}  Nc7 {[%clk 0:00:09]} 38. Kd2 {[%clk 0:00:35]}  Ne6 {[%clk 0:00:09]} 39. Kc3 {[%clk 0:00:32]}  g6 {[%clk 0:00:08]} 40. Nb7 {[%clk 0:00:31]}  Nd8 {[%clk 0:00:06]} 41. Na5 {[%clk 0:00:30]}  Ne6 {[%clk 0:00:03]} 42. Nb3 {[%clk 0:00:29]}  Ng7 {[%clk 0:00:03]} 43. Nc1 {[%clk 0:00:29]}  Nf5 {[%clk 0:00:02]} 44. Bxf5 {[%clk 0:00:28]}  Bxf5 {[%clk 0:00:02]} 45. Nb3 {[%clk 0:00:28]}  Bd7 {[%clk 0:00:01]} 46. Kd3 {[%clk 0:00:28]}  Ke6 {[%clk 0:00:02]} 47. Ke3 {[%clk 0:00:28]}  f5 {[%clk 0:00:01]} 48. Kf4 {[%clk 0:00:28]}  Kf6 {[%clk 0:00:01]} 49. Ke3 {[%clk 0:00:27]}  g5 {[%clk 0:00:01]} 50. hxg5+ {[%clk 0:00:27]}  hxg5 {[%clk 0:00:02]} 51. f4 {[%clk 0:00:27]} 1-0


[Site "https://www.chess.com"]

[Event "Titled Tuesday Blitz January 10 Late 2023"]
[White "Fisher_TheGalactic"]
[Black "Thomas, Anysia"]
[BlackFideId "670472"]
[WhiteElo "2556"]
[BlackElo "2147"]
[Result "1-0"]
[Round "01"]
[TimeControl "180+2"]
[Date "2023.01.10"]
[WhiteClock "0:02:47"]
[BlackClock "0:02:02"]

1. Nf3 {[%clk 0:00:00]}  g6 {[%clk 0:00:00]} 2. g3 {[%clk 0:03:00]}  Bg7 {[%clk 0:02:45]} 3. Bg2 {[%clk 0:03:01]}  c5 {[%clk 0:02:25]} 4. O-O {[%clk 0:03:01]}  Nc6 {[%clk 0:02:24]} 5. e4 {[%clk 0:03:02]}  d6 {[%clk 0:02:23]} 6. c3 {[%clk 0:03:01]}  h5 {[%clk 0:02:22]} 7. d4 {[%clk 0:03:01]}  cxd4 {[%clk 0:02:22]} 8. cxd4 {[%clk 0:03:00]}  Nf6 {[%clk 0:02:22]} 9. Nc3 {[%clk 0:03:01]}  O-O {[%clk 0:02:22]} 10. h3 {[%clk 0:03:01]}  Bd7 {[%clk 0:02:22]} 11. Be3 {[%clk 0:03:00]}  Qc8 {[%clk 0:02:22]} 12. Kh2 {[%clk 0:02:59]}  e6 {[%clk 0:02:21]} 13. Qd2 {[%clk 0:02:58]}  d5 {[%clk 0:02:16]} 14. e5 {[%clk 0:02:57]}  Ne4 {[%clk 0:02:14]} 15. Nxe4 {[%clk 0:02:56]}  dxe4 {[%clk 0:02:13]} 16. Ng5 {[%clk 0:02:55]}  Qe8 {[%clk 0:02:14]} 17. Nxe4 {[%clk 0:02:55]}  Qe7 {[%clk 0:02:04]} 18. a3 {[%clk 0:02:53]}  Rad8 {[%clk 0:02:03]} 19. Bg5 {[%clk 0:02:48]}  Qe8 {[%clk 0:02:02]} 20. Nd6 {[%clk 0:02:47]} 1-0


[Site "https://www.chess.com"]

[Event "Titled Tuesday Blitz January 10 Late 2023"]
[White "Harish, Neeraj"]
[Black "Altman, Joshua"]
[WhiteFideId "30958130"]
[BlackFideId "426210"]
[WhiteElo "2232"]
[BlackElo "2120"]
[Result "1/2-1/2"]
[Round "01"]
[TimeControl "180+2"]
[Date "2023.01.10"]
[WhiteClock "0:00:14"]
[BlackClock "0:00:21"]

1. e4 {[%clk 0:00:00]}  e6 {[%clk 0:00:00]} 2. d4 {[%clk 0:02:58]}  d5 {[%clk 0:03:00]} 3. e5 {[%clk 0:02:58]}  c5 {[%clk 0:03:00]} 4. c3 {[%clk 0:02:58]}  Nc6 {[%clk 0:03:00]} 5. Nf3 {[%clk 0:02:58]}  Qb6 {[%clk 0:03:01]} 6. Bd3 {[%clk 0:02:58]}  cxd4 {[%clk 0:03:01]} 7. O-O {[%clk 0:02:59]}  Bd7 {[%clk 0:03:01]} 8. Re1 {[%clk 0:02:59]}  Nge7 {[%clk 0:03:00]} 9. Nbd2 {[%clk 0:02:55]}  Ng6 {[%clk 0:02:53]} 10. h4 {[%clk 0:02:31]}  dxc3 {[%clk 0:02:44]} 11. bxc3 {[%clk 0:02:18]}  Bc5 {[%clk 0:02:25]} 12. Rb1 {[%clk 0:02:17]}  Qc7 {[%clk 0:02:08]} 13. Nb3 {[%clk 0:01:48]}  Be7 {[%clk 0:01:28]} 14. Qe2 {[%clk 0:00:57]}  Nxh4 {[%clk 0:01:21]} 15. Nxh4 {[%clk 0:00:56]}  Bxh4 {[%clk 0:01:10]} 16. Nc5 {[%clk 0:00:53]}  Nxe5 {[%clk 0:01:11]} 17. Qxe5 {[%clk 0:00:40]}  Qxc5 {[%clk 0:00:53]} 18. Be3 {[%clk 0:00:21]}  Qe7 {[%clk 0:00:50]} 19. Rxb7 {[%clk 0:00:19]}  O-O {[%clk 0:00:32]} 20. Bb5 {[%clk 0:00:17]}  Rad8 {[%clk 0:00:22]} 21. Bxa7 {[%clk 0:00:17]}  Bf6 {[%clk 0:00:20]} 22. Qe3 {[%clk 0:00:15]}  Qd6 {[%clk 0:00:20]} 23. Bc5 {[%clk 0:00:15]}  Qe5 {[%clk 0:00:19]} 24. Qxe5 {[%clk 0:00:15]}  Bxe5 {[%clk 0:00:13]} 25. Rxd7 {[%clk 0:00:15]}  Rxd7 {[%clk 0:00:13]} 26. Bxd7 {[%clk 0:00:15]}  Rd8 {[%clk 0:00:13]} 27. Rxe5 {[%clk 0:00:16]}  Rxd7 {[%clk 0:00:14]} 28. Re1 {[%clk 0:00:14]}  h6 {[%clk 0:00:13]} 29. Bb4 {[%clk 0:00:15]}  Rc7 {[%clk 0:00:12]} 30. a4 {[%clk 0:00:15]}  Ra7 {[%clk 0:00:13]} 31. a5 {[%clk 0:00:15]}  f6 {[%clk 0:00:13]} 32. Ra1 {[%clk 0:00:16]}  Kf7 {[%clk 0:00:13]} 33. a6 {[%clk 0:00:15]}  e5 {[%clk 0:00:14]} 34. Bc5 {[%clk 0:00:15]}  Ra8 {[%clk 0:00:14]} 35. a7 {[%clk 0:00:16]}  Ke6 {[%clk 0:00:15]} 36. Rb1 {[%clk 0:00:16]}  d4 {[%clk 0:00:15]} 37. cxd4 {[%clk 0:00:17]}  exd4 {[%clk 0:00:15]} 38. Bxd4 {[%clk 0:00:16]}  Kd5 {[%clk 0:00:15]} 39. Be3 {[%clk 0:00:17]}  Ke4 {[%clk 0:00:16]} 40. Rb8 {[%clk 0:00:18]}  Rxa7 {[%clk 0:00:16]} 41. Bxa7 {[%clk 0:00:18]}  f5 {[%clk 0:00:16]} 42. Rh8 {[%clk 0:00:17]}  Kf4 {[%clk 0:00:17]} 43. Rg8 {[%clk 0:00:16]}  g5 {[%clk 0:00:18]} 44. Be3+ {[%clk 0:00:16]}  Kg4 {[%clk 0:00:19]} 45. Rg6 {[%clk 0:00:15]}  h5 {[%clk 0:00:20]} 46. Rxg5+ {[%clk 0:00:14]}  Kh4 {[%clk 0:00:20]} 47. Rxf5 {[%clk 0:00:14]}  Kg4 {[%clk 0:00:21]} 48. Rg5+ {[%clk 0:00:14]}  Kh4 {[%clk 0:00:21]} 49. Rg6 {[%clk 0:00:14]} 1/2-1/2


[Site "https://www.chess.com"]

[Event "Titled Tuesday Blitz January 10 Late 2023"]
[White "Winkels, Marcel"]
[Black "Richter, Paul"]
[WhiteFideId "1003887"]
[BlackFideId "2046350"]
[WhiteElo "1960"]
[BlackElo "2171"]
[Result "0-1"]
[Round "01"]
[TimeControl "180+2"]
[Date "2023.01.10"]
[WhiteClock "0:00:05"]
[BlackClock "0:01:06"]

1. c4 {[%clk 0:00:00]}  Nf6 {[%clk 0:00:00]} 2. Nc3 {[%clk 0:03:00]}  d6 {[%clk 0:02:59]} 3. g3 {[%clk 0:02:59]}  g6 {[%clk 0:02:59]} 4. Bg2 {[%clk 0:03:00]}  Bg7 {[%clk 0:03:00]} 5. Nf3 {[%clk 0:03:00]}  e5 {[%clk 0:03:00]} 6. d3 {[%clk 0:03:00]}  O-O {[%clk 0:03:01]} 7. Bg5 {[%clk 0:03:00]}  h6 {[%clk 0:03:01]} 8. Bxf6 {[%clk 0:03:00]}  Bxf6 {[%clk 0:02:59]} 9. Nd5 {[%clk 0:03:00]}  Bg7 {[%clk 0:03:00]} 10. Rb1 {[%clk 0:02:58]}  a5 {[%clk 0:02:59]} 11. O-O {[%clk 0:02:50]}  Nc6 {[%clk 0:02:59]} 12. a3 {[%clk 0:02:48]}  Nd4 {[%clk 0:02:58]} 13. e3 {[%clk 0:02:49]}  Nxf3+ {[%clk 0:02:57]} 14. Bxf3 {[%clk 0:02:46]}  c6 {[%clk 0:02:56]} 15. Nc3 {[%clk 0:02:44]}  f5 {[%clk 0:02:56]} 16. Bg2 {[%clk 0:02:43]}  f4 {[%clk 0:02:50]} 17. exf4 {[%clk 0:02:41]}  exf4 {[%clk 0:02:35]} 18. Re1 {[%clk 0:02:26]}  fxg3 {[%clk 0:02:34]} 19. hxg3 {[%clk 0:02:13]}  Bd4 {[%clk 0:02:21]} 20. Re2 {[%clk 0:02:12]}  Bg4 {[%clk 0:02:20]} 21. Ne4 {[%clk 0:02:11]}  Bxe2 {[%clk 0:02:16]} 22. Qxe2 {[%clk 0:01:54]}  d5 {[%clk 0:02:12]} 23. cxd5 {[%clk 0:01:53]}  cxd5 {[%clk 0:02:12]} 24. Nc3 {[%clk 0:01:52]}  Bxf2+ {[%clk 0:02:12]} 25. Kh2 {[%clk 0:01:48]}  Qg5 {[%clk 0:01:30]} 26. Bxd5+ {[%clk 0:01:43]}  Kh8 {[%clk 0:01:30]} 27. Ne4 {[%clk 0:00:21]}  Bxg3+ {[%clk 0:01:29]} 28. Nxg3 {[%clk 0:00:16]}  Qxd5 {[%clk 0:01:20]} 29. Re1 {[%clk 0:00:15]}  Qd6 {[%clk 0:01:21]} 30. Qe3 {[%clk 0:00:11]}  Qf4 {[%clk 0:01:14]} 31. Qe7 {[%clk 0:00:07]}  Qf2+ {[%clk 0:01:09]} 32. Kh3 {[%clk 0:00:05]}  Rad8 {[%clk 0:01:06]} 0-1


[Site "https://www.chess.com"]

[Event "Titled Tuesday Blitz January 10 Late 2023"]
[White "Perrine, Dalton"]
[Black "Aung Thant Zin"]
[WhiteFideId "2048434"]
[BlackFideId "13000063"]
[WhiteElo "2228"]
[BlackElo "2268"]
[Result "1-0"]
[Round "01"]
[TimeControl "180+2"]
[Date "2023.01.10"]
[WhiteClock "0:00:13"]
[BlackClock "0:00:14"]

1. Nf3 {[%clk 0:00:00]}  d5 {[%clk 0:00:00]} 2. g3 {[%clk 0:02:58]}  Nf6 {[%clk 0:02:59]} 3. Bg2 {[%clk 0:02:58]}  e6 {[%clk 0:02:59]} 4. O-O {[%clk 0:02:58]}  Be7 {[%clk 0:02:59]} 5. d3 {[%clk 0:02:59]}  O-O {[%clk 0:03:00]} 6. Nbd2 {[%clk 0:02:59]}  c5 {[%clk 0:03:00]} 7. e4 {[%clk 0:03:00]}  Nc6 {[%clk 0:02:59]} 8. Re1 {[%clk 0:03:01]}  b6 {[%clk 0:02:57]} 9. e5 {[%clk 0:03:01]}  Nd7 {[%clk 0:02:56]} 10. Nf1 {[%clk 0:03:01]}  Bb7 {[%clk 0:02:55]} 11. h4 {[%clk 0:03:02]}  Re8 {[%clk 0:02:53]} 12. h5 {[%clk 0:02:59]}  h6 {[%clk 0:02:49]} 13. N1h2 {[%clk 0:02:57]}  Bf8 {[%clk 0:02:39]} 14. Ng4 {[%clk 0:02:54]}  f5 {[%clk 0:01:46]} 15. exf6 {[%clk 0:02:49]}  Nxf6 {[%clk 0:01:39]} 16. Nfe5 {[%clk 0:02:47]}  Nxg4 {[%clk 0:01:39]} 17. Qxg4 {[%clk 0:02:29]}  Nxe5 {[%clk 0:01:30]} 18. Rxe5 {[%clk 0:02:26]}  Qf6 {[%clk 0:01:26]} 19. Re2 {[%clk 0:02:27]}  Rad8 {[%clk 0:01:23]} 20. Bf4 {[%clk 0:01:59]}  Bd6 {[%clk 0:01:16]} 21. Bxd6 {[%clk 0:01:17]}  Rxd6 {[%clk 0:00:47]} 22. c3 {[%clk 0:00:59]}  e5 {[%clk 0:00:46]} 23. Qa4 {[%clk 0:00:54]}  Re7 {[%clk 0:00:37]} 24. Qxa7 {[%clk 0:00:34]}  Rf7 {[%clk 0:00:21]} 25. Rae1 {[%clk 0:00:26]}  Kh7 {[%clk 0:00:20]} 26. Qa4 {[%clk 0:00:17]}  Re6 {[%clk 0:00:14]} 27. Qc2 {[%clk 0:00:13]} 1-0


[Site "https://www.chess.com"]

[Event "Titled Tuesday Blitz January 10 Late 2023"]
[White "Mitrovic, Darko R"]
[Black "Przybylski, Wojciech"]
[WhiteFideId "927023"]
[BlackFideId "1117599"]
[WhiteElo "2220"]
[BlackElo "2321"]
[Result "0-1"]
[Round "01"]
[TimeControl "180+2"]
[Date "2023.01.10"]
[WhiteClock "0:00:07"]
[BlackClock "0:00:18"]

1. d4 {[%clk 0:00:00]}  Nf6 {[%clk 0:00:00]} 2. Nf3 {[%clk 0:02:50]}  d5 {[%clk 0:02:57]} 3. g3 {[%clk 0:02:51]}  Bf5 {[%clk 0:02:56]} 4. Bg2 {[%clk 0:02:51]}  e6 {[%clk 0:02:51]} 5. O-O {[%clk 0:02:51]}  c5 {[%clk 0:02:50]} 6. c4 {[%clk 0:02:51]}  Nc6 {[%clk 0:02:49]} 7. cxd5 {[%clk 0:02:50]}  exd5 {[%clk 0:02:49]} 8. Nc3 {[%clk 0:02:49]}  h6 {[%clk 0:02:48]} 9. Bf4 {[%clk 0:02:48]}  c4 {[%clk 0:02:46]} 10. Ne5 {[%clk 0:02:42]}  Be7 {[%clk 0:02:45]} 11. Nxc6 {[%clk 0:02:37]}  bxc6 {[%clk 0:02:41]} 12. b3 {[%clk 0:02:36]}  cxb3 {[%clk 0:02:41]} 13. axb3 {[%clk 0:02:36]}  O-O {[%clk 0:02:36]} 14. Na4 {[%clk 0:02:36]}  Nd7 {[%clk 0:02:35]} 15. Qc1 {[%clk 0:02:26]}  Rc8 {[%clk 0:02:31]} 16. Qc3 {[%clk 0:02:14]}  Re8 {[%clk 0:02:30]} 17. Bd2 {[%clk 0:02:00]}  Bf6 {[%clk 0:02:23]} 18. e3 {[%clk 0:01:57]}  Be4 {[%clk 0:02:19]} 19. Nc5 {[%clk 0:01:53]}  Bxg2 {[%clk 0:02:09]} 20. Kxg2 {[%clk 0:01:35]}  Nxc5 {[%clk 0:02:06]} 21. Qxc5 {[%clk 0:01:34]}  Qb6 {[%clk 0:01:40]} 22. b4 {[%clk 0:01:31]}  Be7 {[%clk 0:01:40]} 23. Qxb6 {[%clk 0:01:03]}  axb6 {[%clk 0:01:34]} 24. Ra6 {[%clk 0:00:59]}  Rb8 {[%clk 0:01:34]} 25. Rfa1 {[%clk 0:00:57]}  Rec8 {[%clk 0:01:29]} 26. h4 {[%clk 0:00:43]}  h5 {[%clk 0:01:20]} 27. Kf3 {[%clk 0:00:38]}  Kf8 {[%clk 0:01:17]} 28. Ra7 {[%clk 0:00:38]}  Bd6 {[%clk 0:01:17]} 29. Rd7 {[%clk 0:00:35]}  Rd8 {[%clk 0:01:12]} 30. Raa7 {[%clk 0:00:33]}  Rxd7 {[%clk 0:01:11]} 31. Rxd7 {[%clk 0:00:27]}  Rc8 {[%clk 0:00:50]} 32. b5 {[%clk 0:00:26]}  Be7 {[%clk 0:00:50]} 33. bxc6 {[%clk 0:00:16]}  Rxc6 {[%clk 0:00:33]} 34. Rxd5 {[%clk 0:00:15]}  g6 {[%clk 0:00:27]} 35. Rb5 {[%clk 0:00:15]}  Ke8 {[%clk 0:00:27]} 36. Bb4 {[%clk 0:00:14]}  Bd8 {[%clk 0:00:26]} 37. d5 {[%clk 0:00:13]}  Rc4 {[%clk 0:00:26]} 38. Ke2 {[%clk 0:00:09]}  Rc2+ {[%clk 0:00:25]} 39. Kf3 {[%clk 0:00:06]}  Kd7 {[%clk 0:00:23]} 40. e4 {[%clk 0:00:06]}  Rb2 {[%clk 0:00:22]} 41. Ke3 {[%clk 0:00:07]}  Be7 {[%clk 0:00:18]} 0-1


[Site "https://www.chess.com"]